fUST/lending_fUST_20250214
["ID","MTS","AMOUNT","RATE_DAILY","PERIOD"]
[352965018,1739464245897,-500.0,0.00013863,2]
[352965020,1739464245907,-500.0,0.00013863,2]
[352965022,1739464245916,-500.0,0.00013863,2]
[352965025,1739464245926,-500.0,0.00013863,2]
[352965027,1739464245937,-500.0,0.00013863,2]
[352965030,1739464245947,-500.0,0.00013863,2]
[352965031,1739464245957,-500.0,0.00013863,2]
[352965032,1739464245967,-279.02791837,0.00013863,2]
[352965033,1739464245976,-622.57,0.00013863,2]
[352965034,1739464245986,-500.0,0.00013863,2]
[352965035,1739464245996,-500.0,0.00013863,2]
[352965036,1739464246005,-151.0,0.00013863,2]
[352965037,1739464246014,-151.0,0.00013863,2]
[352965038,1739464246024,-456.20506591,0.00013863,2]
[352965040,1739464246052,-43.79493409,0.00013863,2]
[352965041,1739464246062,-536.14306591,0.00013863,2]
[352965042,1739464246185,-2740.98,0.00013698,2]
[352965043,1739464246195,-2740.98,0.0001378,2]
[352965044,1739464246205,-370.35693409,0.00013863,2]
[352965045,1739464246214,-500.0,0.00013863,2]
[352965046,1739464246224,-500.0,0.00013863,2]
[352965047,1739464246234,-1335.94,0.00013863,2]
[352965048,1739464246243,-500.0,0.00013863,2]
[352965049,1739464246253,-500.0,0.00013863,2]
[352965050,1739464246263,-835.99,0.00013863,2]
[352965051,1739464246273,-500.0,0.00013863,2]
[352965052,1739464246282,-500.0,0.00013863,2]
[352965053,1739464246293,-500.0,0.00013863,2]
[352965054,1739464246302,-500.0,0.00013863,2]
[352965055,1739464246312,-667.897896,0.00013863,2]
[352965056,1739464246322,-500.0,0.00013863,2]
[352965057,1739464246331,-500.0,0.00013863,2]
[352965058,1739464246341,-500.0,0.00013863,2]
[352965059,1739464246351,-667.897896,0.00013863,2]
[352965061,1739464246360,-500.0,0.00013863,2]
[352965062,1739464246370,-500.0,0.00013863,2]
[352965063,1739464246380,-500.0,0.00013863,2]
[352965064,1739464246390,-514.96927874,0.00013863,2]
[352965065,1739464246399,-500.0,0.00013863,2]
[352965066,1739464246409,-537.00473058,0.00013863,2]
[352965067,1739464246421,-500.0,0.00013863,2]
[352965068,1739464246431,-500.0,0.00013863,2]
[352965069,1739464246441,-500.0,0.00013863,2]
[352965070,1739464246451,-402.45482502,0.00013863,2]
[352965071,1739464246464,-97.54517498,0.00013863,2]
[352965072,1739464246474,-500.0,0.00013863,2]
[352965073,1739464246486,-500.0,0.00013863,2]
[352965074,1739464246496,-500.0,0.00013863,2]
[352965075,1739464246506,-500.0,0.00013863,2]
[352965076,1739464246516,-500.0,0.00013863,2]
[352965077,1739464246528,-500.0,0.00013863,2]
[352965078,1739464246538,-500.0,0.00013863,2]
[352965079,1739464246548,-130.23482501,0.00013863,2]
[352965080,1739464246560,-369.76517499,0.00013863,2]
[352965081,1739464246570,-255.62088488,0.00013863,2]
[352965082,1739464246582,-244.37911512,0.00013863,2]
[352965083,1739464246592,-371.051941,0.00013863,2]
[352965084,1739464246641,-49.3559,0.00013863,2]
[352965085,1739464246654,-79.592159,0.00013863,2]
[352965086,1739464246663,-500.0,0.00013863,2]
[352965087,1739464246673,-500.0,0.00013863,2]
[352965088,1739464246684,-1854.45,0.00013863,2]
[352965089,1739464246694,-500.0,0.00013863,2]
[352965090,1739464246705,-863.4,0.00013863,2]
[352965091,1739464246714,-500.0,0.00013863,2]
[352965092,1739464246724,-500.0,0.00013863,2]
[352965093,1739464246739,-500.0,0.00013863,2]
[352965094,1739464246749,-500.0,0.00013863,2]
[352965095,1739464246759,-500.0,0.00013863,2]
[352965096,1739464246770,-500.0,0.00013863,2]
[352965097,1739464246780,-500.0,0.00013863,2]
[352965098,1739464246791,-1900.97,0.00013863,2]
[352965099,1739464246805,-500.0,0.00013863,2]
[352965100,1739464246815,-151.0,0.00013863,2]
[352965101,1739464246825,-151.0,0.00013863,2]
[352965102,1739464246835,-500.0,0.00013863,2]
[352965103,1739464246847,-1247.55,0.00013863,2]
[352965104,1739464246857,-500.0,0.00013863,2]
[352965105,1739464246868,-500.0,0.00013863,2]
[352965106,1739464246880,-500.0,0.00013863,2]
[352965107,1739464246891,-533.57800113,0.00013863,2]
[352965108,1739464246901,-500.0,0.00013863,2]
[352965109,1739464246912,-500.0,0.00013863,2]
[352965110,1739464246922,-500.0,0.00013863,2]
[352965111,1739464246932,-500.0,0.00013863,2]
[352965112,1739464246943,-500.0,0.00013863,2]
[352965113,1739464246954,-500.0,0.00013863,2]
[352965114,1739464246964,-151.0,0.00013863,2]
[352965115,1739464246975,-500.0,0.00013863,2]
[352965116,1739464246987,-500.0,0.00013863,2]
[352965117,1739464246998,-500.0,0.00013863,2]
[352965118,1739464247007,-500.0,0.00013863,2]
[352965119,1739464247017,-1503.56,0.00013863,2]
[352965120,1739464247027,-500.0,0.00013863,2]
[352965121,1739464247037,-500.0,0.00013863,2]
[352965122,1739464247046,-1976.586239,0.00013863,2]
[352965123,1739464247057,-500.0,0.00013863,2]
[352965124,1739464247067,-500.0,0.00013863,2]
[352965125,1739464247078,-500.0,0.00013863,2]
[352965127,1739464247087,-500.0,0.00013863,2]
[352965128,1739464247097,-500.0,0.00013863,2]
[352965129,1739464247108,-1976.586239,0.00013863,2]
[352965130,1739464247118,-500.0,0.00013863,2]
[352965131,1739464247129,-500.0,0.00013863,2]
[352965132,1739464247139,-500.0,0.00013863,2]
[352965133,1739464247149,-466.47201565,0.00013863,2]
[352965134,1739464247159,-500.0,0.00013863,2]
[352965135,1739464247169,-500.0,0.00013863,2]
[352965136,1739464247179,-500.0,0.00013863,2]
[352965137,1739464247189,-500.0,0.00013863,2]
[352965138,1739464247199,-2363.39,0.00013863,2]
[352965139,1739464247209,-753.71,0.00013863,2]
[352965140,1739464247220,-500.0,0.00013863,2]
[352965141,1739464247232,-500.0,0.00013863,2]
[352965142,1739464247242,-500.0,0.00013863,2]
[352965143,1739464247251,-151.0,0.00013863,2]
[352965144,1739464247262,-500.0,0.00013863,2]
[352965145,1739464247272,-297.79820126,0.00013863,2]
[352965146,1739464247282,-500.0,0.00013863,2]
[352965147,1739464247292,-2076.85,0.00013863,2]
[352965148,1739464247302,-500.0,0.00013863,2]
[352965149,1739464247312,-3127.13,0.00013863,2]
[352965150,1739464247322,-500.0,0.00013863,2]
[352965151,1739464247332,-1160.95,0.00013863,2]
[352965152,1739464247342,-500.0,0.00013863,2]
[352965153,1739464247353,-2724.788688,0.00013863,2]
[352965154,1739464247362,-500.0,0.00013863,2]
[352965155,1739464247373,-5636.8,0.00013863,2]
[352965156,1739464247383,-512.9097285,0.00013863,2]
[352965157,1739464247394,-2724.788688,0.00013863,2]
[352965158,1739464247404,-14692.12,0.00013863,2]
[352965159,1739464247414,-500.0,0.00013863,2]
[352965160,1739464247424,-500.0,0.00013863,2]
[352965161,1739464247435,-500.0,0.00013863,2]
[352965162,1739464247445,-500.0,0.00013863,2]
[352965163,1739464247455,-500.0,0.00013863,2]
[352965164,1739464247465,-500.0,0.00013863,2]
[352965165,1739464247475,-1580.92,0.00013863,2]
[352965166,1739464247488,-500.0,0.00013863,2]
[352965167,1739464247498,-502.627925,0.00013863,2]
[352965168,1739464247508,-500.0,0.00013863,2]
[352965169,1739464247518,-1137.46,0.00013863,2]
[352965170,1739464247528,-500.0,0.00013863,2]
[352965171,1739464247539,-500.0,0.00013863,2]
[352965172,1739464247548,-502.627925,0.00013863,2]
[352965173,1739464247558,-978.48,0.00013863,2]
[352965174,1739464247568,-500.0,0.00013863,2]
[352965175,1739464247578,-3994.75,0.00013863,2]
[352965176,1739464247587,-500.0,0.00013863,2]
[352965177,1739464247596,-500.0,0.00013863,2]
[352965178,1739464247606,-500.0,0.00013863,2]
[352965179,1739464247616,-532.94,0.00013863,2]
[352965180,1739464247626,-500.0,0.00013863,2]
[352965181,1739464247635,-2252.42,0.00013863,2]
[352965182,1739464247645,-500.0,0.00013863,2]
[352965183,1739464247655,-1169.0,0.00013863,2]
[352965184,1739464247666,-847.75,0.00013863,2]
[352965185,1739464247676,-500.0,0.00013863,2]
[352965186,1739464247686,-517.01634038,0.00013863,2]
[352965187,1739464247695,-500.0,0.00013863,2]
[352965188,1739464247706,-1531.4,0.00013863,2]
[352965189,1739464247716,-612.26,0.00013863,2]
[352965190,1739464247726,-500.0,0.00013863,2]
[352965191,1739464247739,-500.0,0.00013863,2]
[352965192,1739464247750,-500.0,0.00013863,2]
[352965193,1739464247760,-500.0,0.00013863,2]
[352965194,1739464247770,-500.0,0.00013863,2]
[352965195,1739464247781,-500.0,0.00013863,2]
[352965196,1739464247791,-568.67481476,0.00013863,2]
[352965197,1739464247804,-38954.42,0.00013863,2]
[352965198,1739464247814,-500.0,0.00013863,2]
[352965199,1739464247824,-500.0,0.00013863,2]
[352965200,1739464247834,-1295.91,0.00013863,2]
[352965201,1739464247847,-500.0,0.00013863,2]
[352965202,1739464247857,-500.0,0.00013863,2]
[352965203,1739464247868,-778.31,0.00013863,2]
[352965204,1739464247878,-500.0,0.00013863,2]
[352965205,1739464247888,-500.0,0.00013863,2]
[352965206,1739464247900,-1308.03,0.00013863,2]
[352965207,1739464247912,-500.0,0.00013863,2]
[352965208,1739464247923,-1951.9,0.00013863,2]
[352965209,1739464247934,-500.0,0.00013863,2]
[352965210,1739464247944,-500.0,0.00013863,2]
[352965211,1739464247956,-15678.52,0.00013863,2]
[352965212,1739464247967,-500.0,0.00013863,2]
[352965213,1739464247979,-500.0,0.00013863,2]
[352965214,1739464247990,-1975.62,0.00013863,2]
[352965215,1739464248000,-698.93,0.00013863,2]
[352965216,1739464248010,-500.0,0.00013863,2]
[352965217,1739464248022,-1173.59,0.00013863,2]
[352965218,1739464248033,-2660.74,0.00013863,2]
[352965219,1739464248044,-500.0,0.00013863,2]
[352965220,1739464248055,-151.0,0.00013863,2]
[352965221,1739464248066,-500.0,0.00013863,2]
[352965222,1739464248076,-500.0,0.00013863,2]
[352965223,1739464248087,-152.459183,0.00013863,2]
[352965224,1739464248097,-1476.35,0.00013863,2]
[352965225,1739464248108,-3200.43,0.00013863,2]
[352965226,1739464248119,-500.0,0.00013863,2]
[352965228,1739464248129,-949.78,0.00013863,2]
[352965229,1739464248141,-500.0,0.00013863,2]
[352965230,1739464248152,-500.0,0.00013863,2]
[352965232,1739464248162,-924.36,0.00013863,2]
[352965233,1739464248174,-500.0,0.00013863,2]
[352965234,1739464248185,-500.0,0.00013863,2]
[352965235,1739464248195,-500.0,0.00013863,2]
[352965236,1739464248207,-500.0,0.00013863,2]
[352965237,1739464248218,-521.96,0.00013863,2]
[352965238,1739464248231,-1543.95,0.00013863,2]
[352965239,1739464248241,-6915.72,0.00013863,2]
[352965240,1739464248252,-500.0,0.00013863,2]
[352965241,1739464248265,-500.0,0.00013863,2]
[352965242,1739464248277,-151.0,0.00013863,2]
[352965243,1739464248288,-151.80704,0.00013863,2]
[352965244,1739464248301,-500.0,0.00013863,2]
[352965245,1739464248313,-500.0,0.00013863,2]
[352965246,1739464248324,-565.96,0.00013863,2]
[352965247,1739464248336,-500.0,0.00013863,2]
[352965248,1739464248347,-500.0,0.00013863,2]
[352965249,1739464248360,-1178.36,0.00013863,2]
[352965250,1739464248372,-586.34,0.00013863,2]
[352965251,1739464248383,-897.63,0.00013863,2]
[352965252,1739464248394,-507.78,0.00013863,2]
[352965253,1739464248405,-545.09,0.00013863,2]
[352965254,1739464248416,-500.0,0.00013863,2]
[352965255,1739464248427,-583.86,0.00013863,2]
[352965256,1739464248437,-500.0,0.00013863,2]
[352965257,1739464248447,-151.0,0.00013863,2]
[352965258,1739464248458,-151.0,0.00013863,2]
[352965259,1739464248469,-985.880526,0.00013863,2]
[352965260,1739464248484,-985.880526,0.00013863,2]
[352965261,1739464248495,-500.0,0.00013863,2]
[352965262,1739464248506,-3238.04,0.00013863,2]
[352965263,1739464248517,-500.0,0.00013863,2]
[352965264,1739464248527,-985.880526,0.00013863,2]
[352965265,1739464248538,-500.0,0.00013863,2]
[352965266,1739464248549,-985.880526,0.00013863,2]
[352965267,1739464248559,-500.0,0.00013863,2]
[352965268,1739464248570,-568.72,0.00013863,2]
[352965269,1739464248581,-500.0,0.00013863,2]
[352965270,1739464248591,-500.0,0.00013863,2]
[352965271,1739464248603,-528.63,0.00013863,2]
[352965272,1739464248613,-500.0,0.00013863,2]
[352965273,1739464248624,-496.397636,0.00013863,2]
[352965274,1739464248636,-496.397636,0.00013863,2]
[352965275,1739464248647,-2049.39,0.00013863,2]
[352965276,1739464248658,-500.0,0.00013863,2]
[352965277,1739464248670,-500.0,0.00013863,2]
[352965278,1739464248681,-496.397636,0.00013863,2]
[352965279,1739464248692,-500.0,0.00013863,2]
[352965280,1739464248703,-496.397636,0.00013863,2]
[352965281,1739464248714,-500.0,0.00013863,2]
[352965282,1739464248726,-928.75,0.00013863,2]
[352965283,1739464248737,-500.0,0.00013863,2]
[352965284,1739464248748,-2740.98,0.00013863,2]
[352965285,1739464248760,-151.0,0.000139,2]
[352965286,1739464248771,-151.0,0.000139,2]
[352965287,1739464248782,-151.0,0.000139,2]
[352965288,1739464248794,-151.0,0.00013944,2]
[352965289,1739464248808,-612.47555888,0.00013944,2]
[352965290,1739464248976,-35312.02901321,0.00013945,5]
[352965292,1739464249179,-2782.45129562,0.00013945,5]
[352965293,1739464249192,-3655.54099317,0.00013945,5]
[352965294,1739464249204,-322.90671414,0.00013945,5]
[352965295,1739464249410,-477.24,0.00013698,2]
[352965296,1739464249423,-22.76,0.00013698,2]
[352965297,1739464249434,-1358.98999995,0.00013945,5]
[352965298,1739464249448,-377.32,0.00013945,5]
[352965299,1739464249554,-3550.23634864,0.00013945,5]
[352965300,1739464249627,-500.0,0.00013698,2]
[352965301,1739464249638,-500.0,0.00013698,2]
[352965302,1739464249649,-500.0,0.0001378,2]
[352965303,1739464249659,-500.0,0.0001378,2]
[352965304,1739464249668,-500.0,0.00013863,2]
[352965305,1739464249678,-500.0,0.00013863,2]
[352965306,1739464249688,-3736.58986809,0.00013945,5]
[352965308,1739464249698,-500.0,0.00013945,2]
[352965309,1739464249708,-500.0,0.00013945,2]
[352965310,1739464249718,-284.32746956,0.00013945,2]
[352965311,1739464249730,-729.72,0.00013945,2]
[352965312,1739464249740,-503.59663681,0.00013945,2]
[352965313,1739464249749,-500.0,0.00013945,2]
[352965314,1739464249759,-500.0,0.00013945,2]
[352965315,1739464249769,-510.84,0.00013945,2]
[352965316,1739464249778,-500.0,0.00013945,2]
[352965317,1739464249788,-503.11398077,0.00013945,2]
[352965318,1739464249799,-500.0,0.00013945,2]
[352965319,1739464249812,-500.0,0.00013945,2]
[352965320,1739464249822,-500.0,0.00013945,2]
[352965321,1739464249831,-500.0,0.00013945,2]
[352965322,1739464249841,-500.0,0.00013945,2]
[352965323,1739464249851,-507.82731586,0.00013945,2]
[352965324,1739464249861,-500.0,0.00013945,2]
[352965325,1739464249871,-500.0,0.00013945,2]
[352965326,1739464249882,-500.0,0.00013945,2]
[352965327,1739464249894,-500.0,0.00013945,2]
[352965328,1739464249903,-500.0,0.00013945,2]
[352965329,1739464249913,-500.0,0.00013945,2]
[352965330,1739464249923,-500.0,0.00013945,2]
[352965331,1739464249932,-500.0,0.00013945,2]
[352965332,1739464249942,-500.0,0.00013945,2]
[352965333,1739464249952,-500.0,0.00013945,2]
[352965334,1739464249961,-500.0,0.00013945,2]
[352965335,1739464249972,-600.38,0.00013945,2]
[352965336,1739464249984,-500.0,0.00013945,2]
[352965337,1739464249993,-500.0,0.00013945,2]
[352965338,1739464250003,-500.0,0.00013945,2]
[352965339,1739464250012,-500.0,0.00013945,2]
[352965340,1739464250022,-500.0,0.00013945,2]
[352965341,1739464250032,-500.0,0.00013945,2]
[352965342,1739464250043,-500.0,0.00013945,2]
[352965343,1739464250052,-500.0,0.00013945,2]
[352965344,1739464250062,-500.0,0.00013945,2]
[352965345,1739464250072,-500.0,0.00013945,2]
[352965346,1739464250082,-500.0,0.00013945,2]
[352965347,1739464250091,-500.0,0.00013945,2]
[352965348,1739464250101,-646.96906056,0.00013945,2]
[352965349,1739464250111,-500.0,0.00013945,2]
[352965350,1739464250120,-500.0,0.00013945,2]
[352965351,1739464250129,-500.0,0.00013945,2]
[352965352,1739464250139,-500.0,0.00013945,2]
[352965353,1739464250149,-500.0,0.00013945,2]
[352965354,1739464250158,-500.0,0.00013945,2]
[352965355,1739464250168,-379.63428157,0.00013945,2]
[352965356,1739464250178,-643.31451805,0.00013945,2]
[352965357,1739464250189,-704.28,0.00013945,2]
[352965358,1739464250199,-635.46,0.00013945,2]
[352965359,1739464250208,-500.0,0.00013945,2]
[352965360,1739464250218,-500.0,0.00013945,2]
[352965361,1739464250229,-500.0,0.00013945,2]
[352965362,1739464250239,-172.26252492,0.00013945,2]
[352965363,1739464250248,-151.0,0.00013945,2]
[352965364,1739464250258,-151.0,0.00013945,2]
[352965365,1739464250267,-520.91838832,0.00013945,2]
[352965366,1739464250277,-500.0,0.00013945,2]
[352965367,1739464250286,-500.0,0.00013945,2]
[352965368,1739464250296,-500.0,0.00013945,2]
[352965369,1739464250306,-500.0,0.00013945,2]
[352965370,1739464250315,-500.0,0.00013945,2]
[352965371,1739464250324,-500.0,0.00013945,2]
[352965372,1739464250334,-500.0,0.00013945,2]
[352965373,1739464250344,-648.70367943,0.00013945,2]
[352965374,1739464250353,-500.0,0.00013945,2]
[352965375,1739464250364,-230.18217777,0.00013945,2]
[352965376,1739464250374,-668.34,0.00013945,2]
[352965377,1739464250384,-500.0,0.00013945,2]
[352965378,1739464250394,-500.0,0.00013945,2]
[352965379,1739464250406,-500.0,0.00013945,2]
[352965380,1739464250416,-500.0,0.00013945,2]
[352965381,1739464250425,-936.75,0.00013945,2]
[352965382,1739464250434,-500.0,0.00013945,2]
[352965383,1739464250444,-151.0,0.00013945,2]
[352965384,1739464250454,-500.0,0.00013945,2]
[352965385,1739464250464,-500.0,0.00013945,2]
[352965386,1739464250473,-500.0,0.00013945,2]
[352965387,1739464250485,-500.0,0.00013945,2]
[352965388,1739464250495,-500.0,0.00013945,2]
[352965389,1739464250505,-500.0,0.00013945,2]
[352965390,1739464250514,-500.0,0.00013945,2]
[352965391,1739464250524,-500.0,0.00013945,2]
[352965392,1739464250534,-500.0,0.00013945,2]
[352965393,1739464250543,-500.0,0.00013945,2]
[352965394,1739464250553,-500.0,0.00013945,2]
[352965395,1739464250563,-500.0,0.00013945,2]
[352965396,1739464250572,-500.0,0.00013945,2]
[352965397,1739464250583,-1205.99,0.00013945,2]
[352965398,1739464250595,-834.76,0.00013945,2]
[352965399,1739464250606,-500.0,0.00013945,2]
[352965400,1739464250616,-500.0,0.00013945,2]
[352965401,1739464250626,-742.5,0.00013945,2]
[352965402,1739464250636,-500.0,0.00013945,2]
[352965403,1739464250648,-748.44,0.00013945,2]
[352965404,1739464250658,-500.0,0.00013945,2]
[352965405,1739464250669,-500.0,0.00013945,2]
[352965406,1739464250679,-500.0,0.00013945,2]
[352965407,1739464250689,-500.0,0.00013945,2]
[352965409,1739464250699,-242.30978416,0.00013945,2]
[352965410,1739464250709,-424.13790645,0.00013945,2]
[352965411,1739464250719,-500.0,0.00013945,2]
[352965412,1739464250731,-500.0,0.00013945,2]
[352965413,1739464250740,-622.57,0.00013945,2]
[352965414,1739464250750,-500.0,0.00013945,2]
[352965415,1739464250760,-500.0,0.00013945,2]
[352965416,1739464250770,-151.0,0.00013945,2]
[352965417,1739464250780,-500.0,0.00013945,2]
[352965418,1739464250790,-906.5,0.00013945,2]
[352965419,1739464250800,-500.0,0.00013945,2]
[352965420,1739464250813,-500.0,0.00013945,2]
[352965421,1739464250822,-1335.94,0.00013945,2]
[352965422,1739464250831,-500.0,0.00013945,2]
[352965423,1739464250842,-608.62454332,0.00013945,2]
[352965424,1739464250851,-835.99,0.00013945,2]
[352965425,1739464250863,-500.0,0.00013945,2]
[352965426,1739464250873,-500.0,0.00013945,2]
[352965427,1739464250888,-500.0,0.00013945,2]
[352965428,1739464250898,-500.0,0.00013945,2]
[352965429,1739464250909,-667.897896,0.00013945,2]
[352965430,1739464250920,-667.897896,0.00013945,2]
[352965431,1739464250930,-500.0,0.00013945,2]
[352965432,1739464250940,-500.0,0.00013945,2]
[352965433,1739464250951,-500.0,0.00013945,2]
[352965434,1739464250961,-667.897896,0.00013945,2]
[352965435,1739464250970,-667.897896,0.00013945,2]
[352965436,1739464250982,-500.0,0.00013945,2]
[352965437,1739464250992,-500.0,0.00013945,2]
[352965438,1739464251003,-500.0,0.00013945,2]
[352965439,1739464251012,-500.0,0.00013945,2]
[352965440,1739464251023,-500.0,0.00013945,2]
[352965441,1739464251032,-500.0,0.00013945,2]
[352965442,1739464251042,-500.0,0.00013945,2]
[352965443,1739464251052,-167.02779138,0.00013945,2]
[352965444,1739464251062,-500.0,0.00013945,2]
[352965445,1739464251071,-500.0,0.00013945,2]
[352965446,1739464251081,-500.0,0.00013945,2]
[352965447,1739464251091,-500.0,0.00013945,2]
[352965448,1739464251100,-500.0,0.00013945,2]
[352965449,1739464251110,-500.0,0.00013945,2]
[352965450,1739464251120,-500.0,0.00013945,2]
[352965451,1739464251129,-500.0,0.00013945,2]
[352965452,1739464251139,-500.0,0.00013945,2]
[352965453,1739464251149,-500.0,0.00013945,2]
[352965454,1739464251159,-500.0,0.00013945,2]
[352965455,1739464251169,-500.0,0.00013945,2]
[352965456,1739464251178,-1854.45,0.00013945,2]
[352965457,1739464251188,-500.0,0.00013945,2]
[352965458,1739464251198,-863.4,0.00013945,2]
[352965459,1739464251208,-500.0,0.00013945,2]
[352965460,1739464251218,-500.0,0.00013945,2]
[352965461,1739464251230,-500.0,0.00013945,2]
[352965462,1739464251240,-326.80857655,0.00013945,2]
[352965463,1739464251256,-173.19142345,0.00013945,2]
[352965464,1739464251267,-500.0,0.00013945,2]
[352965465,1739464251277,-500.0,0.00013945,2]
[352965466,1739464251287,-500.0,0.00013945,2]
[352965467,1739464251297,-1900.97,0.00013945,2]
[352965468,1739464251307,-500.0,0.00013945,2]
[352965469,1739464251316,-151.0,0.00013945,2]
[352965470,1739464251325,-151.0,0.00013945,2]
[352965471,1739464251335,-500.0,0.00013945,2]
[352965472,1739464251345,-151.0,0.00013945,2]
[352965473,1739464251355,-151.0,0.00013945,2]
[352965474,1739464251364,-1247.55,0.00013945,2]
[352965475,1739464251374,-500.0,0.00013945,2]
[352965476,1739464251384,-500.0,0.00013945,2]
[352965477,1739464251394,-500.0,0.00013945,2]
[352965478,1739464251406,-500.0,0.00013945,2]
[352965479,1739464251585,-500.0,0.00013945,2]
[352965480,1739464251601,-500.0,0.00013945,2]
[352965481,1739464251619,-500.0,0.00013945,2]
[352965482,1739464251629,-500.0,0.00013945,2]
[352965483,1739464251641,-500.0,0.00013945,2]
[352965484,1739464251651,-151.0,0.00013945,2]
[352965485,1739464251661,-151.0,0.00013945,2]
[352965486,1739464251671,-500.0,0.00013945,2]
[352965487,1739464251682,-500.0,0.00013945,2]
[352965488,1739464251692,-500.0,0.00013945,2]
[352965489,1739464251702,-500.0,0.00013945,2]
[352965490,1739464251712,-1503.56,0.00013945,2]
[352965491,1739464251722,-500.0,0.00013945,2]
[352965492,1739464251734,-500.0,0.00013945,2]
[352965493,1739464251745,-500.0,0.00013945,2]
[352965494,1739464251754,-1976.586239,0.00013945,2]
[352965495,1739464251764,-1976.586239,0.00013945,2]
[352965496,1739464251775,-500.0,0.00013945,2]
[352965497,1739464251785,-500.0,0.00013945,2]
[352965498,1739464251797,-500.0,0.00013945,2]
[352965499,1739464251812,-500.0,0.00013945,2]
[352965500,1739464251823,-1976.586239,0.00013945,2]
[352965501,1739464251833,-1976.586239,0.00013945,2]
[352965502,1739464251844,-500.0,0.00013945,2]
[352965503,1739464251854,-500.0,0.00013945,2]
[352965504,1739464251865,-432.62094798,0.00013945,2]
[352965505,1739464251877,-500.0,0.00013945,2]
[352965506,1739464251887,-500.0,0.00013945,2]
[352965507,1739464251897,-2363.39,0.00013945,2]
[352965508,1739464251907,-753.71,0.00013945,2]
[352965509,1739464251917,-500.0,0.00013945,2]
[352965510,1739464251927,-500.0,0.00013945,2]
[352965511,1739464251937,-500.0,0.00013945,2]
[352965512,1739464251947,-151.0,0.00013945,2]
[352965513,1739464251958,-500.0,0.00013945,2]
[352965514,1739464251969,-151.0,0.00013945,2]
[352965515,1739464251981,-500.0,0.00013945,2]
[352965516,1739464251993,-2076.85,0.00013945,2]
[352965517,1739464252003,-500.0,0.00013945,2]
[352965518,1739464252013,-3127.13,0.00013945,2]
[352965519,1739464252023,-500.0,0.00013945,2]
[352965520,1739464252036,-1160.95,0.00013945,2]
[352965521,1739464252045,-500.0,0.00013945,2]
[352965522,1739464252056,-2724.788688,0.00013945,2]
[352965523,1739464252066,-2724.788688,0.00013945,2]
[352965524,1739464252077,-500.0,0.00013945,2]
[352965525,1739464252087,-5636.8,0.00013945,2]
[352965526,1739464252097,-2724.788688,0.00013945,2]
[352965527,1739464252106,-14692.12,0.00013945,2]
[352965528,1739464252117,-2724.788688,0.00013945,2]
[352965529,1739464252127,-500.0,0.00013945,2]
[352965530,1739464252137,-500.0,0.00013945,2]
[352965531,1739464252147,-157.65791587,0.00013945,2]
[352965532,1739464252160,-342.34208413,0.00013945,2]